Cogmind - Beta 17.1 @@@ ROGUE MODE // 2026.08.31 @ 10:47:40 Player: UnderDoug Result: Destroyed by LA-DLS(R) with Subdweller Laser Performance ------------- Evolutions (0) 0 Regions Visited (2) 400 Robots Destroyed (6) 30 Value Destroyed (126) 126 Prototype IDs (0) 0 Alien Tech Used (0) 0 Bonus (0) 0 TOTAL SCORE: 556 Bonus ------- None Cogmind --------- Core Integrity 0/250 Matter 292/300 Energy 125/125 System Corruption 0% Temperature Cool (6) Movement Rolling (95) Location -10/Subcaves Parts ------- > --- POWER (1) -------- Light Ion Engine > --- PROPULSION (2) --- Wheel Subdweller Monowheel > --- UTILITY (2) ------ Visual Processing Unit ECM Suite > --- WEAPON (2) ------- Barrage Gun Barrage Gun > --- INVENTORY (5) ---- Spiked Treads Hover Unit Subdweller Optics Targeting Computer Subdweller Laser Peak State ------------ > --- POWER ------------ Light Ion Engine > --- PROPULSION ------- Spiked Treads Wheel > --- UTILITY ---------- Visual Processing Unit ECM Suite > --- WEAPON ----------- Barrage Gun Barrage Gun > --- INVENTORY -------- Hover Unit Targeting Computer Subdweller Laser [Rating: 13] Favorites ----------- Power Light Ion Engine Engine Light Ion Engine Propulsion Hover Unit Treads Spiked Treads Leg Aluminum Leg Wheel Wheel Hover Unit Hover Unit Utility Visual Processing Unit Device ECM Suite Storage Small Storage Unit Processor Visual Processing Unit Weapon Light Assault Rifle Energy Gun Subdweller Laser Ballistic Gun Light Assault Rifle Launcher Grenade Launcher Build | -11 -10 -10 ------- Run | Yrd Mat Sub Slots Evolved . | . . . Power . | . . . Propulsion . | . . . Utility . | . . . Weapon . | . . . Parts Attached 22 | 8 5 9 Power 2 | 1 . 1 Engine 2 | 1 . 1 Core . | . . . Reactor . | . . . Propulsion 10 | 4 2 4 Treads 2 | 1 . 1 Leg 1 | 1 . . Wheel 5 | 2 . 3 Hover 2 | . 2 . Flight . | . . . Utility 4 | 1 3 . Device 1 | . 1 . Storage 1 | 1 . . Processor 2 | . 2 . Hackware . | . . . Protection . | . . . Artifact . | . . . Weapon 6 | 2 . 4 Energy Gun 1 | . . 1 Energy Cannon . | . . . Ballistic Gun 4 | 2 . 2 Ballistic Cannon . | . . . Launcher 1 | . . 1 Special Weapon . | . . . Impact Weapon . | . . . Slashing Weapon . | . . . Piercing Weapon . | . . . Special Melee Weapon . | . . . Unidentified Prototypes . | . . . Parts Lost 8 | . . 8 Power 1 | . . 1 Propulsion 4 | . . 4 Utility . | . . . Weapon 3 | . . 3 Highest Loss Streak 3 | . . 3 To Critical Strikes 1 | . . 1 Average Backups 4 | 4 5 3 Power . | . 1 . Propulsion 2 | 2 2 1 Utility . | . . 1 Weapon . | . 1 . Tool/Special . | . . . Unused Backups 5 | . 3 2 Power . | . . . Propulsion 2 | . 2 . Utility 2 | . . 2 Weapon 1 | . 1 . Tool/Special . | . . . Average Slot Usage (%) 93 | . 99 88 Engine 13 | . 14 13 Treads 1 | . . 1 Wheel 14 | . 11 16 Hover 10 | . 16 5 Device 11 | . 8 14 Storage 2 | . 5 . Processor 13 | . 13 14 Energy Gun 1 | . . 2 Ballistic Gun 22 | . 28 18 Launcher 1 | . . 1 Peak Build Rating 13 | 6 8 13 Average Rating 8 | 3 7 9 On Entrance 4 | . 6 8 Avg Prop Armor Cover (%) 4 | . . 4 Naked Turns . | . . . Heaviest Build 12 | 10 10 12 Greatest Support 36 | 26 26 36 Greatest Overweight (x) 1 | . . 1 Average Overweight (x) . | . . . Largest Inventory Capacity 8 | 8 8 5 Average Capacity 5 | 6 6 5 Most Carried 8 | 7 8 5 Average Carried 4 | 4 5 3 Final Capacity 8 | 8 5 5 Final Carried 6 | 6 5 5 Class Distribution -------------------- 100% | Mutant Dominant Class ---------------- Mutant | -10/Materials Mutant | -10/Subcaves Resources | -11 -10 -10 ----------- Run | Yrd Mat Sub Matter Collected 535 | 198 13 324 Remotely . | . . . Salvage Created 93 | . 13 80 Parts 9 | . 2 7 Haulers Intercepted . | . . . Recyclers Shooed . | . . . Parts Field Recycled . | . . . Retrieved Matter . | . . . Parts Self-Destructed 5 | . . 5 Prevented . | . . . Parts Restored . | . . . Kills | -11 -10 -10 ------- Run | Yrd Mat Sub Combat Hostiles Destroyed 5 | . . 5 Guns 1 | . . 1 AOE 4 | . . 4 Classes Destroyed 3 | . 1 2 Watcher 1 | . 1 . Swarmer 3 | . . 3 Subdweller 2 | . . 2 Best Kill Streak 3 | . 1 3 Combat Bots Only 3 | . . 3 Max Kills in Single Turn 2 | . 1 2 Gunslinging . | . . . Exploded 2 | . . 2 Melee . | . . . Uniques/NPCs Destroyed . | . . . Combat | -11 -10 -10 -------- Run | Yrd Mat Sub Hostile Shots Fired 79 | . . 79 Missed 28 | . . 28 Hits 51 | . . 51 Projectile 51 | . . 51 Critical Strikes 4 | . . 4 Damage Taken 868 | . . 868 Core 263 | . . 263 Absorbed by Shields . | . . . Core Remaining (%) 100 | 100 . . Volleys Fired 28 | . 4 24 Largest 2 | . 2 2 Hottest 56 | . 40 56 Shots Fired 43 | . 8 35 Gun 38 | . 8 30 Cannon . | . . . Launcher 5 | . . 5 Special . | . . . Kinetic 38 | . 8 30 Thermal . | . . . Explosive 5 | . . 5 Electromagnetic . | . . . Robot Hit Streak 25 | . 3 25 Robot Miss Streak 2 | . 2 1 Penetration Max . | . . . Secondary Targets . | . . . Shots Hit Robots 35 | . 4 31 Core Hits 11 | . 3 8 Critical Kills . | . . . Critical Parts Destroyed . | . . . Critical Strikes . | . . . Melee Attacks . | . . . Impact . | . . . Slashing . | . . . Piercing . | . . . Sneak Attacks . | . . . Combat Hostiles . | . . . Follow-up Attacks . | . . . Damage Inflicted 368 | . 34 334 Guns 173 | . 34 139 Cannons . | . . . Explosions 195 | . . 195 Melee . | . . . Ramming . | . . . Kinetic 173 | . 34 139 Thermal . | . . . Explosive 195 | . . 195 Electromagnetic . | . . . Impact . | . . . Slashing . | . . . Piercing . | . . . Highest Corruption . | . . . Average Corruption . | . . . Corruption Purged . | . . . Corruption Blocked . | . . . Overload Shots . | . . . Overflow Damage 33 | . . 33 Projectiles . | . . . Explosions 33 | . . 33 Melee . | . . . Knockbacks . | . . . Impact . | . . . Kinetic . | . . . Secondary . | . . . Self-Inflicted Damage 52 | . . 52 Shots 3 | . . 3 Rammed . | . . . Targets Rammed . | . . . Kicked . | . . . Crushed . | . . . Highest Temperature 6 | . 6 . Average Temperature 5 | . 5 . Received Heat Transfer 120 | . . 120 Siege Activations . | . . . Martial Activations . | . . . Shielding Activations . | . . . Robots Disrupted . | . . . Combat Hostiles . | . . . Robots Corrupted . | . . . Combat Hostiles . | . . . Parts Fried . | . . . Impact Corruptions . | . . . Robots Melted . | . . . Combat Hostiles . | . . . Parts Melted . | . . . Heat Transferred . | . . . Parts Sabotaged . | . . . Parts Stolen . | . . . Parts Stripped . | . . . Power Chain Reactions . | . . . Alert | -11 -10 -10 ------- Run | Yrd Mat Sub Maximum Alert Level . | . . . Low Security (%) 100 | 100 100 . Level 1 . | . . . Level 2 . | . . . Level 3 . | . . . Level 4 . | . . . Level 5 . | . . . High Security . | . . . Max Security . | . . . Peak Influence 7 | . 7 . Initial . | . . . Average . | . . . Influence Increases 67 | . 7 60 Destroy 0b10 Robot/C 60 | . . 60 Destroy 0b10 Robot/NC 5 | . 5 . Destroy Leader 2 | . 2 . Influence Decreases 67 | . 7 60 Time Decay 57 | . 7 50 Lost Part 10 | . . 10 Squads Dispatched . | . . . Investigation . | . . . Extermination . | . . . Reinforcement . | . . . Assault . | . . . Garrison . | . . . Intercept . | . . . Searches Triggered . | . . . Construction Impeded . | . . . Haulers Reinforced . | . . . Active Scanning Responses . | . . . Cargo Convoy Interrupts . | . . . Stealth | -11 -10 -10 --------- Run | Yrd Mat Sub Distress Signals . | . . . Communications Jammed . | . . . Distress Signals . | . . . Times Spotted 33 | . 3 30 Peak Tracking Total 5 | . 1 5 Tactical Retreats 4 | . 1 3 ECM-based Alert Blocks 26 | . 1 25 Traps | -11 -10 -10 ------- Run | Yrd Mat Sub Traps Triggered 3 | . 1 2 Indirectly . | . . . Trap Hack Attempts . | . . . Triggered . | . . . Disarmed . | . . . Reprogrammed . | . . . Reused . | . . . Traps Extracted . | . . . Installed . | . . . Triggered . | . . . Machines | -11 -10 -10 ---------- Run | Yrd Mat Sub Machines Disabled 1 | . . 1 Max in Single Turn 1 | . . 1 Machines Repaired . | . . . Machines Dismantled . | . . . Machines Sabotaged . | . . . Overloaded Fab Kills . | . . . Hacking | -11 -10 -10 --------- Run | Yrd Mat Sub Machines Accessed 1 | . 1 . Terminals . | . . . Fabricators . | . . . Repair Stations . | . . . Recycling Units 1 | . 1 . Scanalyzers . | . . . Garrison Access . | . . . Total Hacks 3 | . 3 . Successful 2 | . 2 . Failed 1 | . 1 . Catastrophic . | . . . Database Lockouts . | . . . Manual . | . . . Terminals . | . . . Fabricators . | . . . Repair Stations . | . . . Recycling Units 3 | . 3 . Scanalyzers . | . . . Garrison Access . | . . . Terminal Hacks . | . . . Fabricator Hacks . | . . . Repair Station Hacks . | . . . Recycling Unit Hacks 2 | . 2 . Report Inventory 1 | . 1 . Retrieve Components 1 | . 1 . Scanalyzer . | . . . Garrison Access Hacks . | . . . Unauthorized Hacks . | . . . Terminals . | . . . Fabricators . | . . . Repair Stations . | . . . Recycling Units . | . . . Scanalyzers . | . . . Garrison Access . | . . . Data Cores Recovered . | . . . Used . | . . . Hacking Detections . | . . . Full Trace Events . | . . . Feedback Events . | . . . Feedback Blocked . | . . . Robot Schematics Acquired . | . . . Robots Built . | . . . Authchips . | . . . Time . | . . . Total Robot Build Rating . | . . . Part Schematics Acquired . | . . . Parts Built . | . . . Authchips . | . . . Time . | . . . Total Part Build Rating . | . . . Part Studies Acquired . | . . . Parts Repaired . | . . . Time . | . . . Parts Recycled . | . . . Recycled Matter . | . . . Retrieved Matter . | . . . Retrieved Components 3 | . 3 . Parts Scanalyzed . | . . . Part Schematics Acquired . | . . . Parts Damaged . | . . . Bothacking | -11 -10 -10 ------------ Run | Yrd Mat Sub Used RIF Installer . | . . . Robots Hacked . | . . . Non-combat . | . . . Combat . | . . . Robot Hacks Applied . | . . . Relay Couplers Released . | . . . Fabnet Peak Effective % . | . . . Robots Rewired . | . . . Allies Hacked . | . . . Hacks Repelled . | . . . Allies | -11 -10 -10 -------- Run | Yrd Mat Sub Total Allies . | . . . Largest Group . | . . . Highest-Rated Group . | . . . Highest-Rated Ally . | . . . Total Orders . | . . . Ally Attacks . | . . . Total Damage . | . . . Kills . | . . . Allies Corrupted . | . . . Allies Melted . | . . . Intel | -11 -10 -10 ------- Run | Yrd Mat Sub Active Infowar (turns) 679 | . 205 474 Optics 679 | . 205 474 ECM 669 | . 195 474 Robot Analysis Total . | . . . Derelict Logs Recovered 1 | . . 1 Drone Launches . | . . . Drone Recoveries . | . . . Exploration | -11 -10 -10 ------------- Run | Yrd Mat Sub Turns Passed 862 | 61 327 474 Spaces Moved 876 | 49 379 448 Core 12 | 12 . . Treads 28 | 2 . 26 Legs 4 | 4 . . Wheels 399 | 31 111 257 Hover 433 | . 268 165 Flight . | . . . Fastest Speed 50 | 50 56 56 Average Speed 77 | 85 65 86 Slowest Speed 160 | 160 90 160 Overloaded Moves . | . . . Propulsion Burnouts . | . . . Robots Hopped . | . . . Potential Cave-ins . | . . . Cave-ins Triggered . | . . . Exploration Rate (%) 26 | 4 44 32 Regions Visited 2 Branch Regions 1 Pre-discovered Areas . | . . . Known Exits Taken . | . . . Unknown Exits Taken 2 | 1 1 . Scrap Searched 6 | . . 6 Spaces Dug . | . . . Terrain Destroyed 34 | . . 34 Melee . | . . . Projectile . | . . . AOE 34 | . . 34 Terrain Rammed . | . . . Walls Destroyed . | . . . Machines Disabled . | . . . Actions | -11 -10 -10 --------- Run | Yrd Mat Sub Total 1018 | 65 451 502 Wait 57 | . 46 11 Move 874 | 48 378 448 Hop . | . . . Pick Up 25 | 9 8 8 Fast Attach 5 | 3 2 . Attach 14 | 3 3 8 Detach . | . . . Swap 7 | 2 2 3 Drop 8 | . 8 . Fire 28 | . 4 24 Melee . | . . . Ram . | . . . Kick . | . . . Crush . | . . . Escape Stasis . | . . . Rewire . | . . . Trap . | . . . Miscellaneous . | . . . Route ------- -11/Scrapyard -10/Materials (discovered 3 exits: [*Mat] / [*Min] / [*Sub]) -10/Subcaves (discovered 2 exits: [*Mat] / [*Rec]) History --------- Turn | Location | Event 5 | -11/Scrapyard | Discovered new exit (range 15) 62 | -11/Scrapyard | Entered Materials 262 | -10/Materials | Discovered new exit (range 10) 310 | -10/Materials | Build established: Mutant 376 | -10/Materials | Discovered new exit (range 15) 385 | -10/Materials | Discovered new exit (range 8) 389 | -10/Materials | Entered Subcaves 390 | -10/Subcaves | Approached by a straggling Scientist 396 | -10/Subcaves | Learned Materials terminal intel 480 | -10/Subcaves | Disturbed a concealed Subdweller 533 | -10/Subcaves | Lost 3 parts (2n1w) 543 | -10/Subcaves | Core integrity fell below 50% 549 | -10/Subcaves | Discovered new exit (range 14) 571 | -10/Subcaves | Lost 3 parts (1p1n1w) 601 | -10/Subcaves | Core integrity fell below 20% 784 | -10/Subcaves | Discovered new exit (range 7) 828 | -10/Subcaves | A swath of the cavern ceiling suddenly collapsed 863 | -10/Subcaves | Destroyed by LA-DLS(R) with Subdweller Laser Last Messages --------------- Acquired Barrage Gun. Acquired 10 matter. Searching scrap... Found Barrage Gun. Found Flamer. Found 55 Matter. Acquired Barrage Gun. Triggered Shrapnel Trap. An expanding cloud of shrapnel blasts out in all directions. DK-MC7(R) destroyed. Imp. Ion Engine fries itself beyond repair. Lgt. Armor Plating fries itself beyond repair. EXIT=FOUND Acquired 52 matter. Acquired Sub. Monowheel. Acquired 10 matter. Acquired Sub. Optics. A swath of the cavern ceiling suddenly collapses. Map ----- +----------------------------------------------------+ | ?????????????????????????????????????????????????? | | ?????????????????????????????????????????????????? | | ?????????????????????????????????????????????????? | | ?????????????????????????????????????????????????? | | ?????????????????????????????????????????????????? | | ?????????????????????????????????????????????????? | | ?????????????????????????????????????????????????? | | ?????????????????????????????????????????????????? | | ?????????????????????????????????????????????????? | | ?????????????????????????????????????????????????? | | ?????????????????????????????????????????????????? | | ?????????????????????????????????????????????????? | | ?????????????????????????????????????????????????? | | ?????????????????????????????????????????????????? | | ???????????????????????##????????????????????????? | | ???????????????????????#"????????????????????????? | | ???????????????????????# ????????????????????????? | | ??????????????????????? "????????????????????????? | | ??????????????????????? ????????????????????????? | | ???????????????????????#R##??????????????????????? | | ??????????????????????## #??????????????????????? | | ??????????????????????# ??????????????????????? | | ??????????????????????# ??????????????????????? | | ??????????????????????# #??????????????????????? | | ???????????????????????# ###????????????????????? | | ????????????????????????#@ #????????????????????? | | ????????????????????? ##;; #????????????????????? | | ??????????????????######;#; #????????????????????? | | ??????????????????#"##""#####????????????????????? | | ?????????????????##"#"###????????????????????????? | | ?????????????????#"""###?????????????????????????? | | ?????????????????###"""####??????????????????????? | | ??????????????????##"##" "###????????????????????? | | ??????????????????#"""#""#""#????????????????????? | | ??????????????????##""#""####????????????????????? | | ???????????????????##"##"#???????????????????????? | | ??????????????????##""##"#???????????????????????? | | ??????????????????#"""##"#??????????##???????????? | | ??????????????????###""###?????????# ##??????????? | | ??????????????????#""#####??????### #??????????? | | ??????????????????## "##"#?###?# ????????????? | | ??????????????###??## "#### ## #?????? ?????? | | ??????????????# #### ## #??### ??????? | | ??????????????# ### # ## #???????? | | ??????????????# ### ##??????? | | ??????????????# ## ????? | | ??????????????# #### ## ?????? | | ??????????????# #### [ ## ?????? | | ??????????????# ## % #??? ???????? | | ??????????????# ##????????????????? | +----------------------------------------------------+ Best States ------------- Heat Dissipation 25 Energy Generation 10 Energy Capacity 125 Matter Stores 300 Matter Capacity 300 Sight Range 18 Terrain Scan Density 10 ECM Strength 1 Evasion (%) 55 Targeting Accuracy 5 Recoil Reduction 1 Item Schematics ----------------- None Robot Schematics ------------------ None Fabricated ------------ Nothing Repaired ---------- Nothing Studied --------- None Alien Tech Used ----------------- None Achievements -------------- None Challenges ------------ None Game ------ Seed ArcsightWeaponsTriangulator Manual? 0 Play Time 00:11:09 Cumulative 8.8 hours Start 2026.08.31 @ 10:32:53 End 2026.08.31 @ 10:47:40 Sessions 1 Manual Loads 0 Difficulty Rogue Special Mode None Game No. 20 Rogue 20 Adventurer 0 Explorer 0 Win Type - Total 0 Types 0/0/0/0/0/0/0/0/0/0 Lore% 18 Gallery% 11 Achievement% 13 Wizard Run 0 Options --------- Layout 1 ASCII 0 Keyboard 0 Movement Mouse Keybinds 0 Fullscreen 2 Font 24/X11 Map View 50x35 Zoom Use 0% Tactical HUD 0 Map Filters NONE Filters NONE Steam 1 RUN: f4fd4ea1-e814-458f-aedd-9380e6778e9f